bitfinex-derivatives/quotes_ETHF0:USTF0_20260208
["timestamp","ask_amount","ask_price","bid_price","bid_amount"]
[1770557031587,4.09025322,2133.1,2132.1,7.59329503]
[1770557032995,6.97858599,2133.7,2132.3,11.74360069]
[1770557032996,2.75288625,2133.4,2132.3,11.74360069]
[1770557033187,14.22997205,2133.5,2132.3,11.74360069]
[1770557034396,14.26347573,2133.5,2132.3,11.74360069]
[1770557035897,2.78638993,2133.4,2132.3,11.74360069]
[1770557037895,2.78638993,2133.5,2132.3,11.74360069]
[1770557038089,14.26347573,2133.5,2132.3,11.74360069]
[1770557040292,2.78638993,2133.5,2132.3,11.74360069]
[1770557040797,14.26347573,2133.5,2132.3,11.74360069]
[1770557041802,11.4770858,2133.5,2132.3,11.74360069]
[1770557042402,14.26347573,2133.5,2132.3,11.74360069]
[1770557044900,4.02838346,2133.4,2132.3,11.74360069]
[1770557045107,11.4770858,2133.2,2132.3,11.74360069]
[1770557046108,11.4770858,2133.4,2132.3,11.74360069]
[1770557046300,4.02938756,2133.3,2132.3,11.74360069]
[1770557046494,11.4770858,2133.4,2132.3,11.74360069]
[1770557046701,4.02942158,2133.3,2132.3,11.74360069]
[1770557046900,11.4770858,2133.4,2132.3,11.74360069]
[1770557047100,4.0293483,2133.3,2132.3,11.74360069]
[1770557047305,11.4770858,2133.4,2132.3,11.74360069]
[1770557047506,4.03019295,2133.3,2132.3,11.74360069]
[1770557047706,11.4770858,2133.4,2132.3,11.74360069]
[1770557047907,4.03017788,2133.3,2132.3,11.74360069]
[1770557048111,11.4770858,2133.4,2132.3,11.74360069]
[1770557048409,15.50725416,2133.3,2132.3,11.74360069]
[1770557048706,11.4770858,2133.3,2132.3,11.74360069]
[1770557049407,2.78638993,2133.5,2132.3,11.74360069]
[1770557049598,15.50777624,2133.5,2132.3,11.74360069]
[1770557049805,4.03069044,2133.4,2132.4,11.50894069]
[1770557050002,14.26710423,2133.6,2132.4,11.50894069]
[1770557050201,15.50771846,2133.5,2132.4,11.50894069]
[1770557050507,4.03063266,2133.4,2132.4,11.50894069]
[1770557051210,15.50771846,2133.4,2132.4,11.50894069]
[1770557051408,11.4770858,2133.4,2132.4,11.50894069]
[1770557052396,4.03179153,2133.3,2132.4,11.50894069]
[1770557052600,11.4770858,2133.4,2132.4,11.50894069]
[1770557052800,4.03201846,2133.3,2132.4,11.50894069]
[1770557053000,2.79001843,2133.6,2132.4,11.50894069]
[1770557053196,15.50912507,2133.5,2132.4,11.50894069]
[1770557053400,15.50912507,2133.4,2132.4,11.50894069]
[1770557053608,4.03203927,2133.3,2132.4,11.50894069]
[1770557053905,4.03203927,2133.3,2132.6,0.23463]
[1770557054110,11.4770858,2133.4,2132.7,11.50894069]
[1770557054411,11.23464002,2133.5,2132.7,11.50894069]
[1770557054611,11.23826852,2133.6,2132.7,11.50894069]
[1770557054811,4.03387087,2133.5,2132.7,11.50894069]
[1770557055012,11.23826852,2133.6,2132.7,11.50894069]
[1770557055216,4.03373918,2133.5,2132.7,11.50894069]
[1770557055508,11.23826852,2133.6,2132.7,11.50894069]
[1770557055908,11.03177415,2133.6,2132.7,11.50894069]
[1770557056310,0.0036285,2133.6,2132.9,10.97621117]
[1770557056908,0.0036285,2133.6,2132.9,11.21081117]
[1770557057110,11.02814565,2133.9,2133.1,10.97621117]
[1770557058118,11.03408336,2133.9,2133.1,10.97621117]
[1770557059416,0.00593771,2133.9,2133.1,10.97621117]
[1770557060014,11.03408336,2133.9,2133.1,10.97621117]
[1770557060222,11.02814565,2133.7,2133.1,10.9327792]
[1770557060514,11.02814565,2133.5,2132.7,10.97621117]
[1770557063019,11.02814565,2133.7,2132.7,10.97621117]
[1770557063224,15.06378382,2133.6,2132.7,10.97621117]
[1770557063517,11.02814565,2133.6,2132.7,10.97621117]
[1770557063713,11.02814565,2133.7,2132.7,11.21083117]
[1770557063915,11.03408336,2133.9,2132.9,10.97621117]
[1770557064114,0.00593771,2133.9,2132.9,16.53556757]
[1770557064314,0.00593771,2133.9,2133.1,10.97621117]
[1770557064511,0.00593771,2133.9,2133.2,11.21078117]
[1770557064915,11.02814565,2134.2,2133.2,11.21078117]
[1770557066014,11.03211811,2134.2,2133.2,11.21078117]
[1770557066215,0.00397246,2134.2,2133.2,11.21078117]
[1770557067014,0.00397246,2134.2,2133.4,11.21076117]
[1770557069310,11.02814565,2134.7,2133.8,10.97621117]
[1770557069722,11.02814565,2134.7,2133.9,10.97621117]
[1770557069921,13.81453558,2134.9,2133.9,10.97621117]
[1770557070123,11.02814565,2134.9,2133.9,10.97621117]
[1770557070425,11.03174643,2134.9,2134.1,10.97621117]
[1770557070620,0.00360078,2134.9,2134.1,11.21425201]
[1770557070814,11.02814565,2135.1,2134.1,11.21425201]
[1770557071016,2.78638993,2135.5,2134.1,11.5515153]
[1770557071017,11.02814565,2135.4,2134.1,11.5515153]
[1770557071725,11.03235551,2135.4,2134.1,11.5515153]
[1770557072422,11.03235551,2135.4,2134.3,10.97621117]
[1770557072825,11.03235551,2135.4,2134.7,10.97621117]
[1770557073523,11.02814565,2136.2,2135.0,10.97621117]
[1770557074324,0.00362698,2136.2,2135.0,10.97621117]
[1770557074526,0.00362698,2136.2,2135.2,10.97621117]
[1770557074922,11.03177263,2136.2,2135.2,10.97621117]
[1770557076523,0.00362698,2136.2,2135.2,10.97621117]
[1770557076728,11.02814565,2136.7,2135.4,11.21053117]
[1770557076920,11.02814565,2136.7,2135.3,6.01993502]
[1770557076921,11.02814565,2136.7,2135.6,10.97621117]
[1770557077129,11.02814565,2136.7,2135.4,10.97621117]
[1770557077621,11.03260458,2136.7,2135.4,10.97998714]
[1770557079334,11.03260458,2136.7,2135.4,11.21430714]
[1770557086038,11.03260458,2136.7,2135.6,11.44272568]
[1770557086237,10.88236945,2137.1,2135.6,11.44272568]
[1770557086439,10.88236945,2137.1,2135.8,11.44272568]
[1770557086840,10.88236945,2137.1,2136.0,11.44272568]
[1770557087233,10.88580518,2137.1,2136.0,11.44272568]
[1770557088238,10.88580518,2137.1,2135.5,11.44272568]
[1770557088937,11.11994518,2137.1,2135.5,11.44272568]
[1770557089539,10.76326659,2136.9,2135.4,0.00377597]
[1770557089732,10.76326659,2136.9,2135.4,11.44650165]
[1770557090330,10.76326659,2137.0,2135.9,11.44272568]
[1770557091534,10.76326659,2137.0,2135.9,11.67699568]
[1770557091940,0.00343573,2137.1,2136.1,11.67697568]
[1770557092136,10.88580518,2137.1,2136.1,11.67697568]
[1770557092440,0.00343573,2137.1,2136.1,11.67697568]
[1770557092635,10.88236945,2137.3,2136.1,11.67697568]
[1770557093635,10.88625377,2137.3,2136.1,11.67697568]
[1770557094537,10.88625377,2137.3,2136.1,11.44272568]
[1770557098341,10.88236945,2137.2,2136.1,11.44272568]
[1770557099243,10.88236945,2137.1,2136.1,11.44272568]
[1770557099842,10.88236945,2137.0,2135.8,11.44272568]
[1770557100038,10.88236945,2136.8,2135.8,11.44272568]
[1770557100345,10.88236945,2136.7,2135.8,11.44272568]
[1770557101140,2.77653413,2136.8,2135.8,11.44272568]
[1770557101444,10.88236945,2136.8,2135.8,11.44272568]
[1770557101644,13.65890358,2136.6,2135.8,11.44272568]
[1770557101845,10.88236945,2136.5,2135.8,11.44272568]
[1770557102848,13.65890358,2136.7,2135.8,11.44272568]
[1770557103644,2.77653413,2136.7,2135.8,11.44272568]
[1770557103844,10.88236945,2136.7,2135.8,11.44272568]
[1770557104446,2.77653413,2136.8,2135.8,11.44272568]
[1770557104645,13.65890358,2136.9,2135.9,11.44272568]
[1770557105040,10.88236945,2136.9,2136.1,11.44272568]
[1770557106637,13.65890358,2136.9,2136.1,11.44272568]
[1770557106838,2.77653413,2136.7,2135.9,11.44272568]
[1770557107153,10.88236945,2136.5,2135.9,11.44272568]
[1770557107743,10.88236945,2136.5,2135.7,11.44272568]
[1770557108145,10.88236945,2136.4,2135.7,11.44272568]
[1770557108447,10.88236945,2136.4,2135.5,11.44272568]
[1770557109253,2.77653413,2136.3,2135.5,11.44272568]
[1770557109553,13.65890358,2136.4,2135.5,11.44272568]
[1770557110050,2.77653413,2136.4,2135.5,11.44272568]
[1770557110249,13.65890358,2136.5,2135.6,11.44272568]
[1770557110651,2.77653413,2136.6,2135.6,11.44272568]
[1770557111153,13.65890358,2136.6,2135.6,11.44272568]
[1770557111643,2.77653413,2136.6,2135.7,11.44272568]
[1770557111844,2.77653413,2136.7,2135.8,11.44272568]
[1770557112849,13.65890358,2136.8,2135.8,11.44272568]
[1770557113050,10.88236945,2136.3,2135.6,11.44272568]
[1770557113549,10.88236945,2136.2,2135.4,11.44650165]
[1770557113755,10.88236945,2136.2,2135.2,11.44272568]
[1770557113756,10.88236945,2136.1,2135.2,11.44272568]
[1770557114054,10.88236945,2135.9,2135.2,11.44272568]
[1770557114348,10.88236945,2135.9,2135.2,11.42931757]
[1770557114856,10.88236945,2135.9,2135.2,0.00530916]
[1770557115254,10.70939879,2135.7,2135.2,0.00530916]
[1770557115453,10.70939879,2135.7,2134.8,11.08570509]
[1770557115654,10.70408963,2135.6,2134.8,11.08570509]
[1770557115949,10.70408963,2135.4,2134.6,11.08570509]
[1770557116151,10.70408963,2135.1,2134.1,11.08570509]
[1770557116352,10.70408963,2135.0,2134.1,11.09045451]
[1770557117351,10.70408963,2135.0,2134.1,0.00474942]
[1770557117650,10.71607356,2134.9,2133.8,11.08570509]
[1770557117858,10.71607356,2134.9,2133.6,11.08570509]
[1770557117859,10.71607356,2134.8,2133.6,11.08570509]
[1770557118555,10.71607356,2134.8,2133.6,11.091563]
[1770557121252,0.00337728,2135.1,2134.0,11.08570509]
[1770557121649,10.77549204,2135.1,2134.0,11.08570509]
[1770557121954,0.00337728,2135.1,2134.2,11.08570509]
[1770557122448,0.00337728,2135.1,2134.2,11.32015509]
[1770557123154,10.77549204,2135.1,2134.2,11.08570509]
[1770557126053,0.00337728,2135.1,2134.2,11.08570509]
[1770557126650,10.77211476,2135.8,2134.7,11.08570509]
[1770557126854,10.77211476,2136.4,2134.8,11.08570509]
[1770557127664,10.77708267,2136.4,2134.8,11.08570509]
[1770557130362,10.77708267,2136.4,2135.1,11.08570509]
[1770557130568,2.77653413,2136.7,2135.1,11.08570509]
[1770557130569,10.77211476,2136.7,2135.8,11.08570509]
[1770557130860,10.77211476,2136.9,2135.8,11.08570509]
[1770557131564,10.77752085,2136.9,2135.8,11.08570509]
[1770557131767,0.00540609,2136.9,2135.8,11.08570509]
[1770557132665,10.72463879,2136.9,2135.8,11.08570509]
[1770557133063,0.00540609,2136.9,2135.8,11.08570509]
[1770557133760,0.00540609,2136.9,2136.0,0.23426]
[1770557133954,5.54844694,2137.8,2135.4,22.532]
[1770557133955,10.75862218,2137.9,2136.3,11.31992509]
[1770557134160,10.75862218,2137.9,2136.5,11.08570509]
[1770557135176,10.76328195,2137.9,2136.5,11.08570509]
[1770557138366,10.76328195,2137.9,2136.6,6.02638236]
[1770557138668,10.76328195,2137.9,2136.7,11.08570509]
[1770557140764,10.77211476,2137.8,2136.6,0.00446765]
[1770557140964,11.00618476,2137.8,2136.6,0.00446765]
[1770557141265,11.00618476,2137.8,2136.3,11.08570509]
[1770557142267,11.00618476,2137.8,2136.3,11.09080275]
[1770557145465,11.27841164,2137.2,2136.3,0.00509766]
[1770557145671,11.51254164,2137.2,2136.3,0.00509766]
[1770557145869,11.51254164,2137.2,2135.9,10.8350757]
[1770557146262,11.51254164,2137.2,2135.4,10.8350757]
[1770557146468,11.27331398,2136.8,2135.4,10.8350757]
[1770557146671,11.27331398,2136.5,2135.4,10.8350757]
[1770557146968,11.27331398,2136.5,2135.4,10.83893872]
[1770557147965,11.27331398,2136.5,2135.4,0.00386302]
[1770557148171,11.50752398,2136.5,2135.4,0.00386302]
[1770557148372,11.32768943,2136.3,2135.0,10.8350757]
[1770557149371,11.36971003,2135.9,2135.0,0.00556051]
[1770557149570,11.36971003,2135.9,2134.6,10.8350757]
[1770557150669,11.36971003,2135.9,2134.6,10.83885764]
[1770557153167,11.60398003,2135.9,2134.6,10.83885764]
[1770557153472,14.14624416,2135.8,2134.6,0.00378194]
[1770557153670,14.38052416,2135.8,2134.6,0.00378194]
[1770557153868,11.36971003,2135.7,2134.6,0.0028435]
[1770557154073,11.36971003,2135.6,2134.6,0.0028435]
[1770557154473,11.36971003,2135.6,2134.6,10.8379192]
[1770557154677,11.60401003,2135.6,2134.6,0.0028435]
[1770557155668,14.38054416,2135.6,2134.6,0.0028435]
[1770557155870,11.36971003,2135.5,2134.6,0.0028435]
[1770557156369,11.36971003,2135.7,2134.6,10.8379192]
[1770557160371,11.36971003,2136.0,2134.6,10.8379192]
[1770557161178,11.36971003,2135.3,2134.1,10.8350757]
[1770557161378,11.60405003,2135.3,2134.1,10.8350757]
[1770557161866,11.36971003,2135.1,2133.8,10.8350757]
[1770557162066,11.36971003,2134.9,2133.8,10.8350757]
[1770557162270,11.36971003,2134.9,2133.9,10.8350757]
[1770557162668,11.36971003,2134.9,2133.8,0.00518639]
[1770557163177,11.36971003,2134.9,2133.8,10.84026209]
[1770557166871,11.36971003,2135.4,2133.8,10.84026209]
[1770557169085,11.60404003,2135.4,2133.8,10.84026209]
[1770557169289,11.36971003,2135.3,2133.8,10.84026209]
[1770557170576,14.14624416,2135.3,2133.8,10.84026209]
[1770557171184,11.36971003,2135.1,2133.8,10.84026209]
[1770557171486,11.60407003,2135.1,2133.8,10.84026209]
[1770557171686,11.36971003,2135.0,2133.8,10.84026209]
[1770557173289,14.14624416,2135.0,2133.8,10.84026209]
[1770557174184,11.26371452,2134.8,2133.8,10.84026209]
[1770557174384,14.04400898,2134.8,2133.8,0.00518639]
[1770557174584,11.26371452,2134.5,2133.8,0.00518639]
[1770557175184,14.04024865,2134.5,2133.8,0.00518639]
[1770557175884,2.77653413,2134.6,2133.8,11.61490403]
[1770557176085,14.45346135,2134.7,2133.8,11.61490403]
[1770557177181,41.8515024,2134.8,2133.0,20.42715874]
[1770557177182,11.67692722,2134.3,2133.4,11.60971764]
[1770557177585,2.77653413,2134.4,2133.4,11.60971764]
[1770557178090,11.67692722,2134.5,2133.4,11.60971764]
[1770557178291,11.67692722,2134.5,2133.4,11.61486536]
[1770557178694,14.45346135,2134.5,2133.4,11.61486536]
[1770557179983,11.67692722,2134.5,2133.4,11.61486536]
[1770557180185,14.45346135,2134.5,2133.4,11.61486536]
[1770557180489,11.67216525,2134.3,2133.4,11.61486536]
[1770557181091,11.67216525,2134.3,2133.4,0.00514772]
[1770557181296,11.67692722,2134.0,2133.4,0.00514772]
[1770557181496,14.45346135,2134.0,2133.4,0.00514772]
[1770557185194,11.4204301,2133.9,2133.0,11.60971764]
[1770557185500,14.19696423,2133.9,2133.0,11.60971764]
[1770557185892,14.19696423,2133.9,2132.8,11.9087354]
[1770557186196,14.19696423,2133.8,2132.8,11.61467623]
[1770557186397,11.4204301,2133.6,2132.8,11.61467623]
[1770557186697,14.21416284,2133.6,2132.8,11.61467623]
[1770557187302,11.4822125,2133.4,2132.8,0.00495859]
[1770557187892,14.27098665,2132.9,2131.9,11.60971764]
[1770557188093,11.47725391,2132.8,2131.9,11.60971764]
[1770557188296,14.27098665,2133.1,2131.9,11.60971764]
[1770557188502,11.47725391,2133.1,2131.9,11.60971764]
[1770557188899,11.48185181,2133.1,2131.9,11.61567142]
[1770557190499,14.27558455,2133.1,2131.9,11.61567142]
[1770557191205,11.48185181,2133.1,2131.9,11.61567142]
[1770557191500,14.27558455,2133.1,2131.9,11.61567142]
[1770557192296,11.48185181,2133.1,2131.9,11.61567142]
[1770557193202,14.27558455,2133.1,2131.9,11.61567142]
[1770557194494,11.14860425,2132.9,2131.9,11.61567142]
[1770557194900,30.316,2132.8,2131.9,11.61567142]
[1770557195103,11.14860425,2132.7,2131.9,11.61567142]
[1770557195300,11.14860425,2132.7,2131.9,0.00595378]
[1770557196207,11.14860425,2132.7,2131.9,11.61567142]
[1770557196902,11.14860425,2132.7,2131.9,0.00595378]
[1770557197810,13.94233699,2132.7,2131.9,0.00595378]
[1770557198105,11.05299886,2132.1,2131.2,11.60971764]
[1770557198410,11.05299886,2131.9,2131.2,11.60971764]
[1770557198710,11.05299886,2132.1,2131.2,11.60971764]
[1770557198905,11.05299886,2132.1,2131.2,11.61397006]
[1770557199111,11.05299886,2132.3,2131.2,11.61397006]
[1770557200109,10.98071103,2132.2,2131.2,0.00425242]
[1770557200311,10.98071103,2132.1,2131.2,0.00425242]
[1770557200512,10.98071103,2132.1,2131.2,11.61397006]
[1770557200913,10.98071103,2132.5,2131.2,11.61397006]
[1770557202612,11.09112158,2132.4,2131.2,11.61397006]
[1770557203007,14.11951432,2132.4,2131.2,0.00425242]
[1770557203213,11.09112158,2132.1,2131.2,11.61397006]
[1770557203909,11.12914739,2132.3,2131.2,11.61397006]
[1770557209716,13.92288013,2132.3,2131.2,11.61397006]
[1770557209910,10.96711242,2132.2,2131.2,11.61397006]
[1770557210214,13.76084516,2132.0,2131.2,0.00425242]
[1770557210408,10.96286,2131.8,2130.8,10.68665642]
[1770557211418,10.96286,2131.8,2130.8,10.69151098]
[1770557214320,11.35929956,2131.7,2130.8,10.69151098]
[1770557214519,2.79373274,2131.8,2130.8,10.69151098]
[1770557214716,5.54844694,2132.0,2130.8,10.69151098]
[1770557214717,2.79373274,2132.0,2130.8,10.69151098]
[1770557214914,14.1530323,2132.1,2130.8,10.69151098]
[1770557215412,11.35929956,2132.1,2130.8,10.69151098]
[1770557217114,11.35929956,2132.1,2131.0,10.68665642]
[1770557217321,11.20131906,2132.3,2131.0,10.68665642]
[1770557219722,11.20131906,2132.3,2131.0,10.92146642]
[1770557219919,11.20131906,2132.3,2131.2,10.68665642]
[1770557220121,11.22186963,2132.4,2131.2,10.92144642]
[1770557220615,14.01560237,2132.6,2131.4,10.68665642]
[1770557221020,11.22186963,2132.5,2131.4,10.68665642]
[1770557221219,14.01560237,2132.5,2131.4,10.68665642]
[1770557221612,14.01560237,2132.5,2131.0,4.16936905]
[1770557221813,13.99536225,2132.0,2131.1,10.68665642]
[1770557223417,13.7391682,2131.9,2131.1,10.68665642]
[1770557223717,10.94543546,2131.8,2130.9,10.68665642]
[1770557224322,2.79373274,2131.9,2130.9,10.68665642]
[1770557225628,2.79373274,2132.0,2130.9,10.68665642]
[1770557228020,2.79373274,2132.1,2131.1,10.68665642]
[1770557228619,11.09152906,2132.0,2131.1,10.68665642]
[1770557230422,13.8852618,2132.0,2131.1,10.68665642]
[1770557230621,11.07917735,2131.9,2131.1,10.68665642]
[1770557232722,2.79373274,2132.0,2131.1,10.68665642]
[1770557233421,2.79373274,2132.1,2131.1,10.68665642]
[1770557233621,2.79373274,2132.3,2131.2,10.68665642]
[1770557234222,11.16799798,2132.4,2131.2,10.68665642]
[1770557234223,13.96173072,2132.4,2131.2,10.92144642]
[1770557235427,2.79373274,2132.5,2131.3,11.41534018]
[1770557235625,14.07496191,2132.5,2131.3,11.41534018]
[1770557237228,11.28122917,2132.5,2131.3,11.41534018]
[1770557240127,2.79373274,2132.6,2131.5,11.18056018]
[1770557240336,11.20212515,2132.6,2131.7,11.18056018]
[1770557243138,14.07641984,2132.7,2131.7,11.18056018]
[1770557243333,14.07641984,2132.8,2131.7,11.41529018]
[1770557244825,14.07641984,2132.7,2131.7,11.41529018]
[1770557245033,14.07641984,2132.7,2131.7,11.18056018]
[1770557245233,11.2806834,2132.4,2131.7,11.18056018]
[1770557245533,14.07441614,2132.4,2131.3,11.18056018]
[1770557245733,2.79373274,2132.5,2131.3,11.18056018]
[1770557246035,2.79373274,2132.9,2131.8,0.23472]
[1770557246232,14.07441614,2133.0,2131.9,11.18056018]
[1770557246533,11.2806834,2133.0,2131.9,11.18056018]
[1770557250427,11.60300813,2132.8,2131.7,11.18056018]
[1770557250628,14.39674087,2132.8,2131.7,11.18056018]
[1770557250834,11.60300813,2132.6,2131.7,11.18056018]
[1770557251134,14.39674087,2132.6,2131.7,11.18056018]
[1770557251434,2.79373274,2132.3,2131.4,11.18056018]
[1770557251622,11.60300813,2132.2,2131.4,11.18056018]
[1770557251822,11.60300813,2132.2,2131.2,35.05356018]
[1770557252033,14.39674087,2132.2,2131.3,11.18056018]
[1770557252229,11.60300813,2132.2,2131.3,11.18056018]
[1770557252429,14.40568153,2132.2,2131.3,11.18056018]
[1770557256124,44.41602547,2132.2,2131.3,11.18056018]
[1770557256325,11.55098349,2132.1,2131.3,11.18056018]
[1770557257234,14.35365689,2132.1,2131.3,11.18056018]
[1770557257735,14.35365689,2132.1,2131.1,11.18056018]
[1770557258432,11.46739603,2131.7,2131.1,11.18056018]
[1770557259228,2.8026734,2131.8,2131.1,11.18056018]
[1770557259535,14.26211919,2132.1,2131.1,11.18056018]
[1770557264038,11.51424892,2131.9,2131.1,11.18056018]
[1770557264341,14.31692232,2131.8,2131.1,11.18056018]
[1770557265436,11.51424892,2131.8,2131.1,11.18056018]
[1770557266637,14.31692232,2131.8,2130.8,0.00485456]
[1770557266945,11.43578067,2131.7,2130.9,11.08692859]
[1770557268040,14.23845407,2131.7,2130.9,11.08692859]
[1770557268535,11.47365181,2131.5,2130.8,0.00485456]
[1770557268741,11.47734399,2131.5,2130.8,0.00485456]
[1770557268943,11.47734399,2131.5,2130.8,11.09178315]
[1770557270639,11.50894494,2131.5,2130.8,11.09178315]
[1770557271938,0.00369218,2131.5,2130.8,11.09178315]
[1770557273241,11.50894494,2131.5,2130.8,11.09178315]
[1770557274640,2.8026734,2131.9,2130.8,11.09178315]
[1770557274839,14.30792616,2131.9,2130.8,11.09178315]
[1770557275038,11.50525276,2131.9,2130.8,11.09178315]
[1770557275645,11.51072515,2131.9,2130.8,11.09178315]
[1770557279344,14.31339855,2131.9,2130.8,15.2611522]
[1770557279545,14.31339855,2131.9,2130.9,11.08692859]
[1770557279740,0.00547239,2131.9,2131.1,11.08692859]
[1770557281149,0.00547239,2131.9,2131.1,11.32172859]
[1770557281551,0.00547239,2131.9,2131.3,11.08692859]
[1770557283140,0.00547239,2131.9,2131.1,4.40416905]
[1770557283141,11.22910582,2131.9,2131.1,4.16936905]
[1770557283346,11.21050643,2131.7,2131.0,11.08692859]
[1770557285352,11.06908214,2131.6,2131.0,11.08692859]
[1770557285751,13.87175554,2131.7,2131.0,11.08692859]
[1770557285947,11.06908214,2131.6,2131.0,11.08692859]
[1770557286548,2.8026734,2131.7,2131.0,11.08692859]
[1770557286854,2.80814579,2131.9,2131.0,11.08692859]
[1770557287348,13.91660269,2131.9,2131.0,11.08692859]
[1770557288950,11.1084569,2131.8,2131.0,11.08692859]
[1770557289954,11.42552192,2131.7,2131.0,11.08692859]
[1770557290155,2.80814579,2131.9,2131.0,11.08692859]
[1770557291458,0.00547239,2131.9,2131.0,11.08692859]
[1770557292262,11.39045552,2131.9,2131.0,11.08692859]
[1770557293760,0.00547239,2131.9,2131.0,11.32173859]
[1770557295461,11.12822534,2131.9,2131.0,11.32173859]
[1770557296866,11.12275295,2131.7,2131.0,11.08692859]
[1770557299873,14.06222147,2131.9,2131.0,11.08692859]
[1770557300476,0.00547239,2131.9,2131.0,11.08692859]
[1770557302062,11.36133285,2131.9,2131.0,11.08692859]
[1770557302260,14.16400625,2131.9,2131.0,11.08692859]
[1770557304175,14.19470833,2131.8,2131.0,11.08692859]
[1770557304469,0.00547239,2131.9,2131.1,16.11477044]
[1770557304671,0.00547239,2131.9,2131.3,11.71060139]
[1770557305773,2.8026734,2132.2,2131.3,11.71060139]
[1770557305973,2.8026734,2132.2,2131.4,11.71060139]
[1770557306474,2.8026734,2132.3,2131.4,11.71060139]
[1770557306776,0.00357314,2132.3,2131.4,11.94536139]
[1770557308272,0.00357314,2132.3,2131.6,11.71060139]
[1770557308665,0.00357314,2132.3,2131.6,11.94534139]
[1770557309176,2.8026734,2132.7,2131.6,11.94534139]
[1770557309473,15.36551956,2132.9,2131.8,11.71060139]
[1770557309667,11.3335093,2132.8,2132.0,11.71060139]
[1770557309871,12.56284616,2132.9,2132.0,11.71060139]
[1770557310173,12.56850554,2132.9,2132.0,11.71060139]
[1770557311279,1.23499624,2132.9,2132.0,11.71060139]
[1770557311577,12.49076926,2132.9,2132.0,11.71060139]
[1770557313978,1.23499624,2132.9,2132.0,11.94530139]
[1770557314170,1.23499624,2132.9,2131.9,30.338]
[1770557314171,11.26089867,2133.2,2132.2,11.94528139]
[1770557314368,10.05315848,2133.5,2132.4,11.71060139]
[1770557314576,21.31405715,2133.5,2132.6,11.71060139]
[1770557314773,11.26089867,2133.5,2132.6,11.71060139]
[1770557315383,11.2653097,2133.5,2132.6,11.71660725]
[1770557315578,0.00441103,2133.5,2132.6,11.71660725]
[1770557318279,0.00441103,2133.5,2132.8,11.71060139]
[1770557318680,11.38450137,2133.5,2132.8,11.71060139]
[1770557319084,0.00441103,2133.5,2132.8,11.71060139]
[1770557320286,11.3099796,2133.5,2132.8,11.71060139]
[1770557323485,0.00441103,2133.5,2132.8,11.71060139]
[1770557329188,11.08627896,2133.5,2132.8,11.71060139]
[1770557333290,0.00441103,2133.5,2132.8,11.71060139]
[1770557333490,11.08627896,2133.5,2132.8,11.71060139]
[1770557334194,0.00441103,2133.5,2132.8,11.71060139]
[1770557335294,11.08186793,2134.0,2132.8,11.71060139]
[1770557335592,11.08186793,2134.0,2133.0,0.23459]
[1770557335804,11.08186793,2134.1,2133.1,10.81314903]
[1770557336297,11.08608322,2134.1,2133.1,11.04771903]
[1770557337197,0.00421529,2134.1,2133.3,10.81314903]
[1770557337396,0.00421529,2134.1,2133.3,11.04770903]
[1770557337590,11.08186793,2134.4,2133.3,11.04770903]
[1770557338496,11.08528635,2134.4,2133.3,11.04770903]
[1770557338897,11.08186793,2134.3,2133.3,11.04770903]
[1770557339101,11.08186793,2134.3,2133.2,30.317]
[1770557339102,2.79789007,2134.8,2134.2,10.81314903]
[1770557339304,11.08186793,2135.2,2134.2,10.81314903]
[1770557339599,11.08186793,2136.4,2134.8,10.81314903]
[1770557339796,11.08186793,2136.4,2134.9,10.81314903]
[1770557340294,11.08771048,2136.4,2134.9,0.0042699]
[1770557340500,11.32194048,2136.4,2134.9,0.0042699]
[1770557340896,11.08186793,2136.2,2134.9,0.0042699]
[1770557341902,11.08186793,2136.2,2134.9,10.81741893]
[1770557342500,11.08186793,2136.2,2134.9,0.0042699]
[1770557343103,11.08186793,2136.0,2134.5,3.08259511]
[1770557343296,11.31615793,2135.8,2134.1,10.81314903]
[1770557343496,11.08186793,2135.6,2134.1,10.81314903]
[1770557344305,11.08186793,2135.6,2134.1,10.81889611]
[1770557344503,11.08186793,2135.6,2134.1,0.00574708]
[1770557345200,11.08186793,2135.6,2134.1,10.81889611]
[1770557348306,11.08186793,2135.6,2134.4,10.81314903]
[1770557356509,11.62697203,2135.5,2134.2,10.60944975]
[1770557356709,11.62697203,2135.2,2134.2,10.60944975]
[1770557359204,11.62697203,2135.2,2134.3,10.60944975]
[1770557359802,4.699,2135.1,2132.9,2.78587781]
[1770557360110,0.23444,2134.4,2133.2,11.71874177]
[1770557360315,0.23444,2134.4,2132.8,0.29708387]
[1770557360316,0.23444,2134.4,2133.4,11.71874177]
[1770557360705,0.24004825,2134.4,2133.5,5.56954538]
[1770557360902,0.00560825,2134.4,2133.6,11.71874177]
[1770557361105,6.06460825,2134.4,2133.6,17.28828715]
[1770557361307,0.07592371,2134.3,2133.7,17.2503253]
[1770557361512,0.07592371,2134.3,2133.7,11.68077992]
[1770557362606,0.08153196,2134.4,2133.8,5.56954538]
[1770557365513,0.08153196,2134.4,2133.8,2.54152371]
[1770557366211,15.96760825,2134.4,2133.8,2.54152371]
[1770557367510,15.96760825,2134.4,2133.8,14.26026549]
[1770557367714,3.281,2135.8,2133.4,0.00540375]
[1770557367715,0.23435,2135.2,2134.0,11.71874178]
[1770557367915,9.26635,2135.2,2134.0,11.71874178]
[1770557368116,9.26635,2135.2,2134.2,11.71874178]
[1770557368517,9.26635,2135.2,2134.3,2.54152371]
[1770557368716,9.27122412,2135.2,2134.3,2.54152371]
[1770557369216,0.00741624,2135.1,2134.3,14.26026549]
[1770557369415,0.00741624,2135.0,2134.3,2.53410747]
[1770557369611,0.23437,2135.0,2134.3,2.53410747]
[1770557370012,0.23437,2135.0,2134.3,14.25284924]
[1770557370519,0.23437,2135.0,2134.3,2.53410747]
[1770557371019,42.12257646,2135.0,2134.3,2.53410747]
[1770557371512,42.12257646,2135.0,2134.0,11.71874178]
[1770557371819,42.12257646,2135.0,2133.4,0.00540375]
[1770557371820,0.23443,2134.5,2133.5,2.53410747]
[1770557372006,41.88820646,2134.4,2133.4,14.258253]
[1770557372210,72.19320646,2134.3,2133.4,14.258253]
[1770557372908,72.19320646,2134.3,2133.6,11.71874178]
[1770557372909,72.42765646,2134.3,2133.6,11.71874178]
[1770557373314,30.305,2134.3,2133.8,11.53932282]
[1770557373513,30.66383791,2134.3,2133.8,11.53932282]
[1770557373714,30.66383791,2134.3,2133.8,14.07343029]
[1770557374313,0.35883791,2134.2,2133.8,2.53410747]
[1770557375221,0.35883791,2134.2,2133.7,11.53932282]
[1770557375423,0.35883791,2134.2,2133.7,14.07343029]
[1770557376322,30.307,2134.3,2133.9,11.49087615]
[1770557376520,30.76273124,2134.3,2133.9,11.49087615]
[1770557376722,0.45573124,2134.2,2133.6,11.49087615]
[1770557376923,0.45573124,2134.2,2133.6,14.02498362]
[1770557377116,0.45573124,2134.2,2133.7,2.53410747]
[1770557377521,0.45573124,2134.2,2133.7,14.11345688]
[1770557378116,0.45573124,2134.2,2133.7,2.15983362]
[1770557378423,41.88820646,2134.2,2133.7,13.87296715]
[1770557379322,0.22293684,2134.1,2133.7,13.87296715]
[1770557382022,72.55303233,2134.3,2133.7,13.87296715]
[1770557382515,0.35782587,2134.2,2133.7,13.87296715]